Cogmind - Beta 12 @@@ ROGUE MODE // 2023.04.06 @ 16:06:45 // Winter2022/Polymind Player: Delirus Result: Destroyed by S-10 Pest with Light Assault Rifle Performance ------------- Evolutions (2) 1000 Regions Visited (6) 1200 Robots Destroyed (40) 200 Value Destroyed (1230) 1230 Prototype IDs (23) 460 Alien Tech Used (0) 0 Bonus (3015) 3015 TOTAL SCORE: 6885 Bonus ------- Polymind Skill 2930 Pacifist 200 Friendly Fire -115 Cogmind --------- Core Integrity 0/550 Matter 0/0 Energy 82/100 System Corruption 0% Temperature Cool (75) Movement Walking (120) Location -8/Materials Parts ------- > --- POWER (1) -------- Light Angular Momentum Engine > --- PROPULSION (2) --- Carbon-fiber Leg Carbon-fiber Leg > --- UTILITY (1) ------ Advanced Heat Sink > --- WEAPON (1) ------- Heavy Laser > --- INVENTORY (1) ---- (None) Peak State ------------ > --- POWER ------------ Light Angular Momentum Engine > --- PROPULSION ------- Carbon-fiber Leg Carbon-fiber Leg > --- UTILITY ---------- Advanced Heat Sink > --- WEAPON ----------- Heavy Laser > --- INVENTORY -------- (None) [Rating: 20] Favorites ----------- Power Improved Ion Engine Engine Improved Ion Engine Power Core Light Nuclear Core Propulsion Light Treads Treads Light Treads Leg Carbon-fiber Leg Wheel Wheel Flight Unit Flight Unit Utility Heat Sink Device Heat Sink Protection Light Armor Plating Weapon Heavy Assault Rifle Energy Gun Beam Rifle Ballistic Gun Heavy Assault Rifle Special Weapon Mining Laser Build | -11 -10 -9 -9 -9 -8 -8 ------- Run | Jun Mat Mat Min Exi Min Mat Slots Evolved . | . . . . . . . Power . | . . . . . . . Propulsion . | . . . . . . . Utility . | . . . . . . . Weapon . | . . . . . . . Parts Attached . | . . . . . . . Power . | . . . . . . . Engine . | . . . . . . . Core . | . . . . . . . Reactor . | . . . . . . . Propulsion . | . . . . . . . Treads . | . . . . . . . Leg . | . . . . . . . Wheel . | . . . . . . . Hover . | . . . . . . . Flight . | . . . . . . . Utility . | . . . . . . . Device . | . . . . . . . Storage . | . . . . . . . Processor . | . . . . . . . Hackware . | . . . . . . . Protection . | . . . . . . . Artifact . | . . . . . . . Weapon . | . . . . . . . Energy Gun . | . . . . . . . Energy Cannon . | . . . . . . . Ballistic Gun . | . . . . . . . Ballistic Cannon . | . . . . . . . Launcher . | . . . . . . . Special Weapon . | . . . . . . . Impact Weapon . | . . . . . . . Slashing Weapon . | . . . . . . . Piercing Weapon . | . . . . . . . Special Melee Weapon . | . . . . . . . Unidentified Prototypes . | . . . . . . . Parts Lost 10 | . . 3 . . . 7 Power 1 | . . . . . . 1 Propulsion 3 | . . 1 . . . 2 Utility 1 | . . . . . . 1 Weapon 5 | . . 2 . . . 3 Highest Loss Streak 7 | . . 3 . . . 7 To Critical Strikes . | . . . . . . . Average Slot Usage (%) 99 | . 100 99 100 100 100 98 Engine 12 | . 16 12 12 12 12 11 Treads 24 | . . 24 25 25 25 22 Device 24 | . 33 24 25 25 25 24 Protection 11 | . . 11 12 12 12 10 Energy Gun 11 | . . 11 12 12 12 12 Ballistic Gun 11 | . . 11 12 12 12 10 Naked Turns 3 | . . 2 . . . 1 Heaviest Build 18 | 6 6 18 18 18 18 18 Greatest Support 40 | 20 20 40 40 40 40 40 Greatest Overweight (x) 1 | . . . . . . 1 Average Overweight (x) . | . . . . . . . Largest Inventory Capacity 1 | . . 1 1 1 1 1 Average Capacity . | . . . 1 1 1 . Most Carried 1 | . . . . 1 . . Average Carried . | . . . . . . . Final Capacity 1 | . . 1 1 1 1 1 Final Carried . | . . . . . . . Class Distribution -------------------- 96% | Sentry Dominant Class ---------------- Tunneler | -10/Materials Sentry | -9/Materials Sentry | -9/Mines Sentry | -9/Exiles Sentry | -8/Mines Sentry | -8/Materials Resources | -11 -10 -9 -9 -9 -8 -8 ----------- Run | Jun Mat Mat Min Exi Min Mat Matter Collected 315 | . . 204 . 75 . 36 Remotely . | . . . . . . . Salvage Created 1599 | . . 1027 . 257 . 315 Parts 112 | . . 80 . 16 . 16 Haulers Intercepted . | . . . . . . . Recyclers Shooed . | . . . . . . . Parts Field Recycled . | . . . . . . . Retrieved Matter . | . . . . . . . Parts Self-Destructed . | . . . . . . . Prevented . | . . . . . . . Kills | -11 -10 -9 -9 -9 -8 -8 ------- Run | Jun Mat Mat Min Exi Min Mat Combat Hostiles Destroyed 30 | . . 22 . 1 . 7 Melee 1 | . . 1 . . . . Guns 28 | . . 21 . 1 . 6 Classes Destroyed 8 | . . 8 . . . . Tunneler 1 | . . 1 . . . . Recycler 1 | . . 1 . . . . Operator 1 | . . 1 . . . . Watcher 6 | . . 5 . . . 1 Swarmer 5 | . . 3 . . . 2 Grunt 14 | . . 11 . 2 . 1 Brawler 2 | . . 1 . . . 1 Sentry 10 | . . 7 . . . 3 Best Kill Streak 5 | . . 5 . 1 . 4 Combat Bots Only 4 | . . 4 . 1 . 4 Max Kills in Single Turn 2 | . . 2 . 1 . 1 Gunslinging . | . . . . . . . Exploded . | . . . . . . . Melee 1 | . . 1 . . . . Uniques/NPCs Destroyed . | . . . . . . . Combat | -11 -10 -9 -9 -9 -8 -8 -------- Run | Jun Mat Mat Min Exi Min Mat Damage Taken 2359 | . . 1004 . . . 1355 Core 712 | . . 155 . . . 557 Absorbed by Shields . | . . . . . . . Core Remaining (%) 87 | 100 100 . . . 61 . Volleys Fired 147 | . . 77 . 25 . 45 Largest 2 | . . 2 . 2 . 2 Hottest 100 | . . 100 . 79 . 79 Shots Fired 242 | . . 134 . 50 . 58 Gun 241 | . . 133 . 50 . 58 Cannon . | . . . . . . . Launcher . | . . . . . . . Special 1 | . . 1 . . . . Kinetic 115 | . . 74 . 25 . 16 Thermal 127 | . . 60 . 25 . 42 Explosive . | . . . . . . . Electromagnetic . | . . . . . . . Robot Hit Streak 15 | . . 10 . 15 . 8 Robot Miss Streak 5 | . . 5 . 1 . 2 Penetration Max . | . . . . . . . Secondary Targets 3 | . . 3 . . . . Max Gunslinging Chain 1 | . . 1 . . . . Shots Hit Robots 171 | . . 88 . 37 . 46 Core Hits 84 | . . 52 . 19 . 13 Critical Kills . | . . . . . . . Critical Parts Destroyed 1 | . . 1 . . . . Critical Strikes 13 | . . 7 . 3 . 3 Burn 12 | . . 6 . 3 . 3 Destroy 1 | . . 1 . . . . Melee Attacks . | . . . . . . . Impact . | . . . . . . . Slashing . | . . . . . . . Piercing . | . . . . . . . Sneak Attacks . | . . . . . . . Combat Hostiles . | . . . . . . . Follow-up Attacks . | . . . . . . . Damage Inflicted 2659 | . . 1301 . 533 . 825 Guns 2643 | . . 1290 . 533 . 820 Cannons . | . . . . . . . Explosions . | . . . . . . . Melee . | . . . . . . . Ramming 16 | . . 11 . . . 5 Kinetic 1018 | . . 596 . 213 . 209 Thermal 1625 | . . 694 . 320 . 611 Explosive . | . . . . . . . Electromagnetic . | . . . . . . . Impact . | . . . . . . . Slashing . | . . . . . . . Piercing . | . . . . . . . Highest Corruption . | . . . . . . . Average Corruption . | . . . . . . . Corruption Purged . | . . . . . . . Corruption Blocked . | . . . . . . . Overload Shots . | . . . . . . . Overflow Damage . | . . . . . . . Projectiles . | . . . . . . . Explosions . | . . . . . . . Melee . | . . . . . . . Knockbacks . | . . . . . . . Impact . | . . . . . . . Kinetic . | . . . . . . . Secondary . | . . . . . . . Self-Inflicted Damage . | . . . . . . . Shots . | . . . . . . . Rammed 6 | . . 3 . . . 3 Targets Rammed 7 | . . 4 . . . 3 Kicked . | . . . . . . . Crushed 1 | . . 1 . . . . Highest Temperature 75 | . . 70 . . . 75 Average Temperature 20 | . . 19 . . . 24 Received Heat Transfer 1092 | . . 480 . . . 612 Siege Activations . | . . . . . . . Robots Corrupted . | . . . . . . . Combat Hostiles . | . . . . . . . Parts Fried . | . . . . . . . Impact Corruptions . | . . . . . . . Robots Melted 1 | . . . . . . 1 Combat Hostiles 1 | . . . . . . 1 Parts Melted 6 | . . 3 . . . 3 Heat Transferred 4773 | . . 2183 . 1036 . 1554 Parts Sabotaged . | . . . . . . . Parts Stolen . | . . . . . . . Parts Stripped . | . . . . . . . Power Chain Reactions . | . . . . . . . Missiles Intercepted . | . . . . . . . Alert | -11 -10 -9 -9 -9 -8 -8 ------- Run | Jun Mat Mat Min Exi Min Mat Peak Influence 323 | . . 323 128 . . 97 Initial 118 | . . . 118 . . . Average 106 | . . 129 125 . . 22 Maximum Alert Level 1 | . . 1 . . . . Low Security (%) 84 | 100 100 80 100 . 100 100 Level 1 15 | . . 19 . . . . Level 2 . | . . . . . . . Level 3 . | . . . . . . . Level 4 . | . . . . . . . Level 5 . | . . . . . . . High Security . | . . . . . . . Max Security . | . . . . . . . Squads Dispatched 1 | . . 1 . . . . Investigation . | . . . . . . . Extermination . | . . . . . . . Reinforcement 1 | . . 1 . . . . Assault . | . . . . . . . Garrison . | . . . . . . . Intercept . | . . . . . . . Searches Triggered . | . . . . . . . Construction Impeded . | . . . . . . . Haulers Reinforced . | . . . . . . . Active Scanning Responses . | . . . . . . . Cargo Convoy Interrupts . | . . . . . . . Stealth | -11 -10 -9 -9 -9 -8 -8 --------- Run | Jun Mat Mat Min Exi Min Mat Distress Signals 1 | . . 1 . . . . Communications Jammed . | . . . . . . . Distress Signals . | . . . . . . . Times Spotted 56 | . . 36 . . . 20 Peak Tracking Total 9 | . . 7 . . . 9 Tactical Retreats 1 | . . 1 . . . . Traps | -11 -10 -9 -9 -9 -8 -8 ------- Run | Jun Mat Mat Min Exi Min Mat Traps Triggered . | . . . . . . . Indirectly . | . . . . . . . Trap Hack Attempts . | . . . . . . . Triggered . | . . . . . . . Disarmed . | . . . . . . . Reprogrammed . | . . . . . . . Reused . | . . . . . . . Traps Extracted . | . . . . . . . Installed . | . . . . . . . Triggered 1 | . . . 1 . . . Machines | -11 -10 -9 -9 -9 -8 -8 ---------- Run | Jun Mat Mat Min Exi Min Mat Machines Disabled 3 | . . 2 . . . 1 Max in Single Turn 1 | . . 1 . . . 1 Machines Repaired . | . . . . . . . Machines Sabotaged . | . . . . . . . Overloaded Fab Kills . | . . . . . . . Hacking | -11 -10 -9 -9 -9 -8 -8 --------- Run | Jun Mat Mat Min Exi Min Mat Machines Accessed 4 | . . 3 . 1 . . Terminals 3 | . . 3 . . . . Fabricators . | . . . . . . . Repair Stations . | . . . . . . . Recycling Units . | . . . . . . . Scanalyzers . | . . . . . . . Garrison Access . | . . . . . . . Total Hacks 7 | . . 6 . 1 . . Successful 4 | . . 3 . 1 . . Failed 3 | . . 3 . . . . Catastrophic 1 | . . 1 . . . . Database Lockouts . | . . . . . . . Manual 9 | . . 8 . 1 . . Terminals 6 | . . 6 . . . . Fabricators . | . . . . . . . Repair Stations . | . . . . . . . Recycling Units . | . . . . . . . Scanalyzers . | . . . . . . . Garrison Access . | . . . . . . . Terminal Hacks 2 | . . 1 . 1 . . Branch Access Points 1 | . . 1 . . . . EX-Prototype ID Bank 1 | . . . . 1 . . Fabricator Hacks . | . . . . . . . Repair Station Hacks . | . . . . . . . Recycling Unit Hacks . | . . . . . . . Scanalyzer . | . . . . . . . Garrison Access Hacks . | . . . . . . . Unauthorized Hacks 2 | . . 2 . . . . Terminals 2 | . . 2 . . . . Track 2 | . . 2 . . . . Fabricators . | . . . . . . . Repair Stations . | . . . . . . . Recycling Units . | . . . . . . . Scanalyzers . | . . . . . . . Garrison Access . | . . . . . . . Data Cores Recovered . | . . . . . . . Used . | . . . . . . . Hacking Detections 3 | . . 3 . . . . Full Trace Events . | . . . . . . . Feedback Events . | . . . . . . . Feedback Blocked . | . . . . . . . Robot Schematics Acquired . | . . . . . . . Robots Built . | . . . . . . . Authchips . | . . . . . . . Time . | . . . . . . . Total Robot Build Rating . | . . . . . . . Part Schematics Acquired . | . . . . . . . Parts Built . | . . . . . . . Authchips . | . . . . . . . Time . | . . . . . . . Total Part Build Rating . | . . . . . . . Parts Repaired . | . . . . . . . Time . | . . . . . . . Parts Recycled . | . . . . . . . Recycled Matter . | . . . . . . . Retrieved Matter . | . . . . . . . Retrieved Components . | . . . . . . . Parts Scanalyzed . | . . . . . . . Part Schematics Acquired . | . . . . . . . Parts Damaged . | . . . . . . . Bothacking | -11 -10 -9 -9 -9 -8 -8 ------------ Run | Jun Mat Mat Min Exi Min Mat Used RIF Installer . | . . . . . . . Robots Hacked 5 | . . 3 . . . 2 Non-combat . | . . . . . . . Combat 5 | . . 3 . . . 2 Robot Hacks Applied 7 | . . 3 . . . 4 find_shortcuts 5 | . . 3 . . . 2 find_garrison 2 | . . . . . . 2 Relay Couplers Released . | . . . . . . . Fabnet Peak Effective % . | . . . . . . . Robots Rewired 1 | . . . . 1 . . Allies Hacked . | . . . . . . . Hacks Repelled . | . . . . . . . Allies | -11 -10 -9 -9 -9 -8 -8 -------- Run | Jun Mat Mat Min Exi Min Mat Total Allies 1 | . . . . 1 . . Largest Group 1 | . . . . 1 . . Highest-Rated Group 8 | . . . . 8 . . Highest-Rated Ally 8 | . . . . 8 . . Total Orders . | . . . . . . . Ally Attacks . | . . . . . . . Total Damage . | . . . . . . . Kills . | . . . . . . . Allies Corrupted . | . . . . . . . Allies Melted . | . . . . . . . Intel | -11 -10 -9 -9 -9 -8 -8 ------- Run | Jun Mat Mat Min Exi Min Mat Robot Analysis Total 5 | 1 . 2 . . . 2 Derelict Logs Recovered . | . . . . . . . Drone Launches . | . . . . . . . Drone Recoveries . | . . . . . . . Exploration | -11 -10 -9 -9 -9 -8 -8 ------------- Run | Jun Mat Mat Min Exi Min Mat Turns Passed 5054 | 15 30 3267 95 790 39 818 Spaces Moved 1366 | 21 38 589 60 434 25 199 Core 16 | 10 . 2 . . . 4 Treads 1240 | . . 531 60 434 25 190 Legs 5 | . . . . . . 5 Wheels 95 | 11 38 46 . . . . Hover . | . . . . . . . Flight 10 | . . 10 . . . . Fastest Speed 37 | 50 80 37 160 160 160 50 Average Speed 152 | 65 80 151 160 160 160 157 Slowest Speed 160 | 80 80 160 160 160 160 160 Overloaded Moves . | . . . . . . . Propulsion Burnouts . | . . . . . . . Robots Hopped . | . . . . . . . Cave-ins Triggered . | . . . . . . . Exploration Rate (%) 32 | 3 11 66 17 87 18 22 Regions Visited 6 Branch Regions 3 Pre-discovered Areas . | . . . . . . . Known Exits Taken 1 | . . 1 . . . . Unknown Exits Taken 5 | 1 1 . 1 1 1 . Scrap Searched . | . . . . . . . Spaces Dug 1 | . . 1 . . . . Terrain Destroyed 1 | . . 1 . . . . Melee . | . . . . . . . Projectile 1 | . . 1 . . . . AOE . | . . . . . . . Terrain Rammed . | . . . . . . . Walls Destroyed . | . . . . . . . Machines Disabled . | . . . . . . . Actions | -11 -10 -9 -9 -9 -8 -8 --------- Run | Jun Mat Mat Min Exi Min Mat Total 4098 | 22 37 2830 59 480 24 646 Wait 2560 | . . 2161 . . . 399 Move 1360 | 20 37 588 59 433 24 199 Hop . | . . . . . . . Pick Up 1 | . . . . 1 . . Fast Attach . | . . . . . . . Attach . | . . . . . . . Detach . | . . . . . . . Swap . | . . . . . . . Drop 1 | . . . . 1 . . Fire 147 | . . 77 . 25 . 45 Melee . | . . . . . . . Ram 1 | . . . . . . 1 Kick . | . . . . . . . Crush 6 | . . 4 . . . 2 Escape Stasis . | . . . . . . . Rewire 20 | . . . . 20 . . Trap . | . . . . . . . Miscellaneous 2 | 2 . . . . . . Route ------- -11/Junkyard -10/Materials -9/Materials (discovered 3 exits: [*Mat x2] / *Min) -9/Mines -9/Exiles (discovered 2 exits: [*Min x2]) -8/Mines -8/Materials History --------- Turn | Location | Event 1 | -11/Junkyard | Discovered new exit (range 3) 16 | -11/Junkyard | Entered Materials 38 | -10/Materials | Discovered new exit (range 10) 46 | -10/Materials | Entered another Materials area 1353 | -9/Materials | Discovered new exit (range 15) 1576 | -9/Materials | Lost 3 parts (1n2w) 2575 | -9/Materials | Discovered new exit (range 5) 3112 | -9/Materials | Identified exit to Mines 3313 | -9/Materials | Entered Mines 3372 | -9/Mines | Met a Derelict bent on vengeance 3401 | -9/Mines | Deemed a non-threat by the Exiles lab entrance 3401 | -9/Mines | Discovered new exit (range 5) 3408 | -9/Mines | Entered Exiles 3408 | -9/Exiles | Found Exiles lab destroyed 3429 | -9/Exiles | Discovered new exit (range 15) 4010 | -9/Exiles | Opened EX-Vault 4018 | -9/Exiles | Found Field Lobotomy Kit 4173 | -9/Exiles | Discovered new exit (range 15) 4198 | -9/Exiles | Entered Mines 4213 | -8/Mines | Discovered new exit (range 16) 4237 | -8/Mines | Entered Materials 5020 | -8/Materials | Core integrity fell below 50% 5025 | -8/Materials | Core integrity fell below 20% 5055 | -8/Materials | Destroyed by S-10 Pest with Light Assault Rifle Last Messages --------------- 05020_ Critical hit (Burn: +37). 05020_ U-05 Engineer builds a Door. 05023_ M-13 Machinist repairs Y-45 Defender. 05024_ Slammed into S-10 Pest. 05025_ G-47 Trooper destroyed. 05025_ M-13 Machinist fits Backup Laser I on Y-45 Defender. 05026_ Imp. Heat Sink destroyed. 05026_ Particle Gun destroyed. 05026_ Lost control of G-47 Trooper. 05027_ Took control of G-50 Soldier. 05027_ Extracted analysis data for G-50 Soldier. 05032_ Lgt. Ion Engine melted. 05032_ S-10 Pest destroyed. 05034_ Destroyed Flight Unit. 05036_ Acquired 5 Protomatter. 05037_ M-13 Machinist repairs Lgt. Armor Plating. 05039_ S-10 Pest destroyed. 05041_ Y-45 Defender destroyed. 05049_ Purification Channel disabled. 05055_ G-47 Trooper destroyed. Map ----- +----------------------------------------------------+ | ???? # + #??######???????????????????? | | ??# """"""" # # #?????????+?????????????????? | | ??# """"""" + # #???????????????????????????? | | ??# """"""" # ?# #???????????????????????????? | | ?????"""""" # ?# #????????????+??????????????? | | ?????????"" # ??# #???????????????????????????? | | ???????????## ??# #???????? #????"????????????? | | ????????????##???# ########+## "????????????? | | ?????????????????# + "????????????? | | ?????????????????# #??????????????????? | | ?????????????????# ! #??????????????????? | | ?????????????????# ##?????????????????? | | ?????????????????# ]!] "#?????????????????? | | ?????????????????# ]! T#?????????????????? | | ?????????????????# ]] "#?????????????????? | | ?????????????????# ##?????????????????? | | ?????????????????# ####???????????????? | | ?????????????????# ???????????????? | | ?????????????????# ##????????????????? | | ?????????????????# """"" #?????????????????? | | ????????????###### """"" #?????????????????? | | ????????????# "!"" #?????????????????? | | ????????????# ==%= # !! ?????????? | | ????????????# %%!%= / !! ?????????? | | ????????# ! ###m###s## # ?????????? | | ????????# ## *%%=%g#?? ##?????????????????? | | ????????#/ ## ! #??????????????????????? | | ????????# """" ## """ #??????????????????????? | | ????????# """" ## """ #??????????????????????? | | ????????# """" ## """ #??????????????????????? | | ????????+ ? ## "" #??????????????????????? | | ????????#???? ?# """ #??????????????????????? | | ?????????????# ?# "" #??????????????????????? | | ?????????????# ?# """g #??????????????????????? | | ?????????????# ?# ?" #??????????????????????? | | ?????????????####?#??? #??????????????????????? | | ?????????????????????####+#??????????????????????? | | ?????????????????????????????????????????????????? | | ?????????????????????????????????????????????????? | | ?????????????????????????????????????????????????? | | ?????????????????????????????????????????????????? | | ?????????????????????????????????????????????????? | | ?????????????????????????????????????????????????? | | ?????????????????????????????????????????????????? | | ?????????????????????????????????????????????????? | | ?????????????????????????????????????????????????? | | ?????????????????????????????????????????????????? | | ?????????????????????????????????????????????????? | | ?????????????????????????????????????????????????? | | | +----------------------------------------------------+ Best States ------------- Heat Dissipation 42 Energy Generation 23 Energy Capacity 215 Matter Stores 100 Matter Capacity 100 Sight Range 16 Terrain Scan Range 16 Terrain Scan Density 10 Armor Coverage 150 Resistance: EX 50 Resistance: I 25 Evasion (%) 62 Recoil Reduction 2 Item Schematics ----------------- None Robot Schematics ------------------ None Fabricated ------------ Nothing Alien Tech Used ----------------- None Achievements -------------- None Challenges ------------ None Polymind | -11 -10 -9 -9 -9 -8 -8 ---------- Run | Jun Mat Mat Min Exi Min Mat Hosts 6 | 1 . 3 . . . 2 Combat Hostiles 5 | . . 3 . . . 2 Allies . | . . . . . . . Unique Host Classes 4 | 1 . 2 . . . 1 Average Host Suspicion 65 | . 13 74 11 18 4 86 Unsuspicious Activity 2749 | 12 . 2160 . 180 . 397 Returns to Shadow 2 | . . 2 . . . . Fuzzy Dispatches . | . . . . . . . Protomatter Created 207 | . . 98 . 81 . 28 Used 132 | 5 . 52 . . . 75 Decayed 4 | . . 4 . . . . Highest Spend 45 | 5 . 23 . . . 45 Top 5 Hosts by Kills: Y-45 Defender (-9/Materials: 12) Y-45 Defender (-9/Materials: 10) G-50 Soldier (-8/Materials: 4) S-10 Pest (-9/Materials: 3) G-47 Trooper (-8/Materials: 1) Game ------ Seed DisposableAlloyRouter Manual? 0 Play Time 00:16:18 Cumulative 123.3 hours Start 2023.04.06 @ 15:52:36 End 2023.04.06 @ 16:06:45 Sessions 1 Manual Loads 0 Difficulty Rogue Special Mode Winter2022/Polymind Game No. 80 Rogue 80 Adventurer 0 Explorer 0 Win Type - Total 4 Types 3/0/0/1/0/0/0/0/0 Lore% 44 Gallery% 63 Achievement% 59 Wizard Run 0 Options --------- ASCII 0 Keyboard 0 Movement Numpad Keybinds 0 Fullscreen 2 Font 12/Smallcaps Map View 83x54 Tactical HUD 1 Map Filters NONE Filters NONE Steam 1 RUN: cfce50f1-bc5b-4782-952c-78ec8023d180